bitfinex/quotes_ETHUSD_20250210
["timestamp","ask_amount","ask_price","bid_price","bid_amount"]
[1739214367037,3.71968,2688.4,2688.3,0.2825]
[1739214367244,3.7199,2688.3,2688.0,3.722]
[1739214367438,3.7199,2688.3,2688.2,0.0075]
[1739214368586,0.8229,2688.4,2688.2,0.0075]
[1739214370486,3.71943,2688.6,2688.2,0.0521969]
[1739214370664,4.6163603,2688.7,2688.2,0.0521969]
[1739214370870,3.71941,2688.6,2688.2,0.015]
[1739214371040,4.44943482,2688.6,2688.2,0.05219471]
[1739214371240,4.44943482,2688.6,2688.2,0.015]
[1739214371461,4.44943482,2688.6,2688.2,0.05219472]
[1739214372191,4.44943482,2688.6,2688.2,0.015]
[1739214373654,3.7196,2688.5,2688.2,0.015]
[1739214374051,0.1458203,2688.7,2688.4,0.015]
[1739214374251,0.1458203,2688.7,2688.6,0.0075]
[1739214374451,0.1458203,2688.7,2688.6,0.015]
[1739214374682,0.1458203,2688.7,2688.6,7.90758794]
[1739214374880,0.1458203,2688.7,2688.6,7.8704]
[1739214375436,0.1458203,2688.7,2688.6,8.4204]
[1739214375936,0.1458203,2688.7,2688.6,7.8704]
[1739214376488,0.1458203,2688.7,2688.6,7.4973]
[1739214377403,0.1458203,2688.7,2688.6,7.53448448]
[1739214377634,0.1458203,2688.7,2688.6,7.4973]
[1739214379104,0.1458203,2688.7,2688.6,3.015]
[1739214379503,0.1458203,2688.7,2688.6,6.7344]
[1739214380309,0.1458203,2688.7,2688.6,6.80241202]
[1739214382331,0.1458203,2688.7,2688.6,7.07741202]
[1739214384114,0.1458203,2688.7,2688.6,7.11459742]
[1739214384720,0.1458203,2688.7,2688.6,12.46741202]
[1739214386547,0.1458203,2688.7,2688.6,12.84051202]
[1739214386761,0.1458203,2688.7,2688.6,9.12111202]
[1739214387521,3.8650803,2688.7,2688.6,0.08301202]
[1739214387734,3.8650803,2688.7,2688.6,0.07551202]
[1739214388558,3.8650803,2688.7,2688.6,0.35051202]
[1739214388868,4.6380803,2688.7,2688.6,0.35051202]
[1739214389066,4.6380803,2688.7,2688.6,0.34301202]
[1739214389218,4.6380803,2688.7,2688.5,5.359]
[1739214389219,4.4924,2688.6,2688.5,5.359]
[1739214390134,4.4924,2688.6,2688.2,0.275]
[1739214390539,3.71972,2688.4,2688.2,0.275]
[1739214390754,4.49282,2688.3,2687.9,3.7305]
[1739214390950,4.49282,2688.3,2687.8,0.0075]
[1739214390951,3.72037,2687.9,2687.8,0.0075]
[1739214391157,0.773,2688.3,2687.3,2.85553086]
[1739214391158,4.49351,2687.8,2687.5,3.723]
[1739214391324,3.72065,2687.7,2687.6,0.29]
[1739214391664,3.72065,2687.7,2687.6,0.0075]
[1739214391865,3.72065,2687.7,2687.6,0.2825]
[1739214392249,0.773,2687.8,2687.6,0.2825]
[1739214393445,0.73750902,2687.7,2687.6,0.2825]
[1739214394736,4.45815902,2687.7,2687.6,0.2825]
[1739214396152,0.73750902,2687.7,2687.6,0.2825]
[1739214397789,3.72093,2687.5,2687.4,3.723]
[1739214397940,3.72093,2687.5,2687.4,3.998]
[1739214398366,3.72093,2687.5,2687.4,3.723]
[1739214398571,3.72103,2687.5,2687.4,0.275]
[1739214398834,3.72134,2687.2,2687.1,5.3975]
[1739214399066,3.72134,2687.2,2687.1,0.0075]
[1739214399267,3.72134,2687.2,2687.1,0.2825]
[1739214399485,3.72122,2687.3,2687.1,0.2825]
[1739214399781,3.72107,2687.4,2687.2,0.275]
[1739214400885,7.44225,2687.4,2687.2,0.275]
[1739214401379,3.72107,2687.4,2687.2,0.275]
[1739214401940,3.7212,2687.3,2687.2,0.275]
[1739214402586,0.7896,2687.0,2686.8,5.358]
[1739214402750,3.72176,2686.9,2686.8,8.3655]
[1739214402966,4.51126,2687.0,2686.8,8.6405]
[1739214403173,0.7896,2687.0,2686.8,8.6405]
[1739214403679,4.51124,2687.0,2686.8,8.6405]
[1739214404888,4.51124,2687.0,2686.9,0.275]
[1739214406207,0.7896,2687.0,2686.9,0.275]
[1739214406903,1.52097757,2687.0,2686.9,0.275]
[1739214407293,5.24259757,2687.0,2686.9,0.275]
[1739214410373,3.72203,2686.7,2686.6,3.724]
[1739214410594,3.72203,2686.7,2686.6,0.275]
[1739214412214,1.52097757,2687.0,2686.7,0.0075]
[1739214412380,1.52097757,2687.0,2686.7,3.739]
[1739214412585,4.45300757,2687.0,2686.7,3.739]
[1739214412812,3.72176,2686.9,2686.7,3.739]
[1739214413068,4.45299757,2687.0,2686.7,3.739]
[1739214414179,0.73137757,2687.0,2686.7,3.739]
[1739214416778,0.73137757,2687.0,2686.7,3.77621643]
[1739214416951,0.73137757,2687.0,2686.8,0.015]
[1739214418591,3.90701554,2687.6,2686.8,0.015]
[1739214418592,4.51239,2687.5,2687.0,0.015]
[1739214418764,0.74959212,2687.2,2687.0,0.015]
[1739214419351,0.74959212,2687.2,2687.0,0.0075]
[1739214419578,0.7914,2687.1,2686.6,0.275]
[1739214419746,3.722,2686.8,2686.4,5.39]
[1739214419958,3.72217,2686.7,2686.5,0.275]
[1739214420142,0.7914,2686.7,2686.5,0.275]
[1739214420336,4.5135,2686.7,2686.4,3.0]
[1739214420537,4.5135,2686.7,2686.5,0.275]
[1739214420737,0.7914,2686.7,2686.5,0.275]
[1739214420939,4.51295,2687.1,2686.6,0.015]
[1739214421135,3.72163,2687.0,2686.6,0.015]
[1739214421965,0.7914,2687.1,2686.6,0.015]
[1739214422180,3.72193,2686.8,2686.6,0.015]
[1739214422487,3.72193,2686.8,2686.4,3.0]
[1739214422641,7.44392,2686.8,2686.6,0.275]
[1739214422984,3.72193,2686.8,2686.6,0.275]
[1739214424410,0.8255,2686.6,2685.9,6.1529]
[1739214424613,3.72267,2686.3,2686.0,4.06807786]
[1739214424762,3.72286,2686.1,2686.0,0.06807786]
[1739214424967,3.72286,2686.1,2686.0,0.34307786]
[1739214425663,4.54833,2686.2,2686.0,0.34307786]
[1739214426180,3.72286,2686.1,2686.0,0.34307786]
[1739214427516,3.72286,2686.1,2686.0,0.06807786]
[1739214428409,4.45160373,2686.1,2686.0,0.06807786]
[1739214430212,0.72874373,2686.1,2686.0,0.06807786]
[1739214430418,0.8255,2686.8,2686.1,0.0075]
[1739214430567,4.5474,2686.8,2686.1,3.77507612]
[1739214430766,4.5474,2686.8,2686.1,3.73785]
[1739214430767,3.72217,2686.6,2686.1,3.73785]
[1739214431198,3.72254,2686.4,2686.1,0.015]
[1739214431400,3.72259,2686.3,2686.1,0.015]
[1739214431619,3.72259,2686.3,2686.0,3.79307786]
[1739214431620,3.72286,2686.1,2686.0,0.06807786]
[1739214432023,4.54836,2686.1,2686.0,0.06807786]
[1739214433080,3.72446,2685.0,2684.6,5.39]
[1739214433286,3.72481,2684.7,2684.6,0.06811336]
[1739214433501,4.55031,2684.7,2684.6,0.06811336]
[1739214433729,0.8255,2684.7,2684.6,0.06811336]
[1739214433885,3.72467,2684.8,2684.6,0.06811336]
[1739214434529,0.74897713,2684.7,2684.6,0.06811336]
[1739214434834,4.47378713,2684.7,2684.6,0.06811336]
[1739214435190,0.74897713,2684.7,2684.6,0.06811336]
[1739214435795,4.47378713,2684.7,2684.6,0.06811336]
[1739214439230,3.72518,2684.5,2684.2,0.275]
[1739214439657,3.72564,2684.2,2683.7,0.7629]
[1739214439950,3.72564,2684.2,2683.9,0.015]
[1739214440301,3.72538,2684.3,2683.9,0.015]
[1739214441106,3.7253,2684.4,2683.9,0.015]
[1739214441508,4.51771,2684.6,2684.2,0.0075]
[1739214441742,3.72501,2684.6,2684.2,0.0075]
[1739214442545,3.72532,2684.4,2684.2,0.0075]
[1739214443247,3.72532,2684.4,2684.0,0.06812859]
[1739214443248,3.72536,2684.3,2684.0,0.06812859]
[1739214443418,3.72556,2684.2,2684.0,0.06812859]
[1739214443835,3.72564,2684.1,2684.0,0.06812859]
[1739214444023,3.72564,2684.1,2684.0,0.34312859]
[1739214444221,3.7255,2684.2,2684.0,0.34312859]
[1739214444726,3.72564,2684.1,2684.0,0.06812859]
[1739214445465,3.72606,2683.8,2683.7,5.39]
[1739214445751,3.72633,2683.6,2683.5,5.364]
[1739214445907,3.72633,2683.6,2683.5,5.639]
[1739214446110,3.72612,2683.8,2683.5,5.639]
[1739214446310,8.24442,2684.0,2683.5,5.639]
[1739214446547,4.5185,2684.0,2683.5,5.639]
[1739214446709,3.72607,2683.8,2683.5,5.639]
[1739214447152,4.5185,2684.0,2683.6,0.0075]
[1739214447153,0.7927,2684.0,2683.6,0.0075]
[1739214447336,3.72584,2684.0,2683.6,0.0075]
[1739214447742,3.72572,2684.1,2683.6,0.0075]
[1739214447743,3.72603,2683.9,2683.6,0.0075]
[1739214448421,3.72603,2683.9,2683.6,35.0075]
[1739214448930,0.74509978,2683.7,2683.6,35.0075]
[1739214449459,4.47128978,2683.7,2683.6,0.0075]
[1739214449757,3.72634,2683.6,2683.2,0.7704]
[1739214449920,5.26398978,2683.7,2683.5,0.275]
[1739214450121,5.26398978,2683.7,2683.2,0.7629]
[1739214450432,0.74509978,2683.7,2683.4,0.275]
[1739214450754,0.74509978,2683.7,2683.5,0.015]
[1739214451067,0.74509978,2683.7,2683.6,0.2825]
[1739214452775,1.53779978,2683.7,2683.2,0.0681489]
[1739214452918,3.72675,2683.3,2683.2,0.0681489]
[1739214453124,4.51945,2683.3,2683.2,0.0681489]
[1739214453333,4.51945,2683.3,2683.0,0.276]
[1739214453334,3.72703,2683.1,2683.0,0.276]
[1739214454782,3.72665,2683.4,2683.0,0.276]
[1739214454989,3.72685,2683.3,2683.0,0.276]
[1739214455139,4.51912,2683.6,2683.1,0.0075]
[1739214455336,4.51912,2683.6,2683.1,3.73444]
[1739214455540,3.72652,2683.5,2683.0,0.276]
[1739214455989,0.73909994,2683.2,2683.0,0.276]
[1739214456196,0.73909994,2683.2,2682.9,1.25]
[1739214456392,1.53179994,2683.2,2683.0,0.276]
[1739214456540,0.73909994,2683.2,2683.0,0.276]
[1739214456940,0.73909994,2683.2,2683.1,0.0075]
[1739214457575,3.72633,2683.6,2683.3,0.0075]
[1739214457946,5.35,2683.8,2683.3,0.015]
[1739214457947,3.72627,2683.7,2683.3,0.015]
[1739214458366,0.74387314,2683.4,2683.3,0.015]
[1739214459043,0.74387314,2683.4,2683.1,3.729]
[1739214459374,3.72702,2683.2,2683.0,0.276]
[1739214459578,3.72703,2683.1,2682.8,3.0]
[1739214459752,3.72703,2683.1,2682.9,0.276]
[1739214460094,3.72696,2683.2,2682.9,0.276]
[1739214460244,3.72684,2683.3,2682.9,0.276]
[1739214460660,3.72684,2683.3,2682.8,3.72744]
[1739214460885,3.72704,2683.1,2682.9,0.276]
[1739214461185,3.72689,2683.2,2682.9,0.276]
[1739214461385,1.53657314,2683.4,2682.9,0.276]
[1739214461680,1.53657314,2683.4,2682.9,4.00317]
[1739214461901,5.26318314,2683.4,2682.9,4.00317]
[1739214462121,1.53657314,2683.4,2683.0,3.72714]
[1739214462325,5.26318314,2683.4,2682.9,7.7304]
[1739214462459,1.53657314,2683.4,2682.9,7.7304]
[1739214462660,1.53657314,2683.4,2682.9,4.00317]
[1739214462888,3.72679,2683.3,2682.9,0.276]
[1739214463218,3.72696,2683.2,2682.9,0.276]
[1739214464399,1.53657314,2683.4,2682.9,0.276]
[1739214464696,8.98990314,2683.4,2682.9,4.00327]
[1739214464905,3.72675,2683.3,2682.9,0.276]
[1739214465081,5.26319314,2683.4,2682.9,4.0033]
[1739214465289,1.53657314,2683.4,2683.0,0.0075]
[1739214465614,0.74387314,2683.4,2683.2,3.72681]
[1739214465901,0.74387314,2683.4,2683.0,3.73463]
[1739214466199,0.74387314,2683.4,2683.1,3.72693]
[1739214467071,0.74387314,2683.4,2683.0,0.0075]
[1739214467278,4.47048314,2683.4,2683.0,0.0075]
[1739214467588,4.47048314,2683.4,2683.0,3.73466]
[1739214468298,3.72712,2683.1,2682.9,0.276]
[1739214468667,7.45426,2683.1,2682.9,0.276]
[1739214469062,7.45426,2683.1,2682.6,6.73515]
[1739214469063,3.72725,2683.0,2682.6,3.0075]
[1739214469292,3.72712,2683.1,2682.8,0.275]
[1739214469703,4.53382,2683.3,2682.8,0.275]
[1739214469898,3.7269,2683.2,2682.8,0.275]
[1739214470101,3.7269,2683.2,2682.8,3.275]
[1739214470313,4.53382,2683.3,2682.9,0.015]
[1739214471214,3.72697,2683.2,2682.9,0.0075]
[1739214471421,4.53381,2683.3,2682.9,0.0075]
[1739214471617,6.157,2683.8,2683.3,3.72675]
[1739214471815,6.157,2683.8,2683.4,3.73404]
[1739214471816,0.807,2683.8,2683.4,3.73404]
[1739214472119,3.72537,2684.3,2683.7,3.72612]
[1739214472276,4.53237,2684.3,2683.8,0.015]
[1739214472477,0.72909556,2684.1,2683.8,0.015]
[1739214473713,0.72909556,2684.1,2683.8,3.74098]
[1739214473905,0.72909556,2684.1,2683.8,0.015]
[1739214475110,4.45482556,2684.1,2683.6,3.0]
[1739214475284,5.26182556,2684.1,2683.9,0.276]
[1739214475724,0.72909556,2684.1,2683.9,0.276]
[1739214477537,4.45473556,2684.1,2683.9,0.276]
[1739214478036,0.72909556,2684.1,2683.9,0.276]
[1739214478915,4.45473556,2684.1,2683.9,0.276]
[1739214479106,0.72909556,2684.1,2683.9,0.276]
[1739214480534,3.72504,2684.6,2684.0,4.49078]
[1739214480702,3.72504,2684.6,2684.1,3.72556]
[1739214481103,7.45006,2684.6,2684.1,3.72556]
[1739214481325,3.72513,2684.5,2684.0,0.765]
[1739214481833,3.72563,2684.2,2683.9,0.276]
[1739214482134,3.72573,2684.1,2683.9,0.276]
[1739214482631,4.48301,2684.2,2683.9,0.276]
[1739214482831,3.72576,2684.1,2683.9,0.276]
[1739214483143,0.76389328,2684.3,2684.2,3.7255]
[1739214483429,4.48928328,2684.3,2684.0,4.4909]
[1739214483633,0.76389328,2684.3,2684.0,4.4909]
[1739214483829,0.76389328,2684.3,2684.0,3.728]
[1739214484016,4.48928328,2684.3,2684.0,3.728]
[1739214484218,0.76389328,2684.3,2684.0,3.728]
[1739214484632,3.72462,2684.9,2684.4,0.7629]
[1739214484805,0.74810327,2684.5,2684.4,0.7704]
[1739214485559,0.74810327,2684.5,2684.4,0.0075]
[1739214485852,4.47318327,2684.5,2684.4,0.0075]
[1739214487227,0.74810327,2684.5,2684.4,0.0075]
[1739214487435,3.7246,2684.9,2684.4,0.0075]
[1739214487634,3.7246,2684.9,2684.5,3.72508]
[1739214488917,3.72435,2685.1,2684.8,0.0075]
[1739214489348,7.4487,2685.1,2684.8,0.0075]
[1739214489563,0.7575,2685.2,2684.4,5.39]
[1739214489930,3.72483,2684.7,2684.5,0.0075]
[1739214490259,3.72495,2684.6,2684.4,5.39]
[1739214490439,3.72495,2684.6,2684.5,0.276]
[1739214491758,4.48232,2684.7,2684.4,5.39]
[1739214491963,4.48232,2684.7,2684.5,0.276]
[1739214492169,3.72494,2684.6,2684.5,0.276]
[1739214492526,3.72543,2684.3,2683.9,0.7629]
[1739214492753,3.72558,2684.2,2684.0,0.276]
[1739214493538,3.72573,2684.1,2683.7,4.4909]
[1739214493759,3.72604,2683.9,2683.5,0.7629]
[1739214494069,3.7263,2683.7,2683.6,0.276]
[1739214494270,3.72606,2683.8,2683.6,0.276]
[1739214494766,3.72619,2683.7,2683.6,0.276]
[1739214495469,3.72656,2683.5,2683.3,3.729]
[1739214495711,4.48369,2683.7,2683.5,0.276]
[1739214495858,3.72633,2683.6,2683.5,0.276]
[1739214496233,3.72675,2683.3,2683.2,0.276]
[1739214496771,3.72675,2683.3,2682.8,0.0075]
[1739214496772,3.72712,2683.1,2682.8,0.0075]
[1739214496974,3.72689,2683.2,2682.9,0.276]
[1739214497573,3.72666,2683.4,2683.0,0.015]
[1739214497769,0.73081553,2683.7,2683.3,0.0075]
[1739214498342,4.48969,2684.0,2683.3,0.05226583]
[1739214498540,3.72597,2683.9,2683.5,0.0075]
[1739214498739,0.55,2683.6,2683.4,0.06814382]
[1739214498981,0.55,2683.6,2682.9,0.278]
[1739214498982,3.72695,2683.2,2682.9,0.278]
[1739214499187,3.72705,2683.1,2682.9,0.278]
[1739214499340,0.7638,2683.2,2682.9,0.278]
[1739214499772,4.49072,2683.2,2682.9,0.278]
[1739214500487,0.73380671,2683.1,2682.9,0.278]
[1739214500989,3.72717,2683.0,2682.9,0.278]
[1739214501971,3.72717,2683.0,2682.8,0.2855]
[1739214502289,3.72731,2682.9,2682.8,0.278]
[1739214502646,3.72717,2683.0,2682.8,0.278]
[1739214503607,7.45446,2683.0,2682.8,0.278]
[1739214503803,3.72742,2682.9,2682.8,0.278]
[1739214504059,3.72717,2683.0,2682.8,0.278]
[1739214504759,0.73380671,2683.1,2682.8,0.278]
[1739214504940,3.72724,2683.0,2682.8,0.278]
[1739214505140,3.72724,2683.0,2682.6,3.73]
[1739214505308,0.55,2683.0,2682.5,5.37]
[1739214505514,3.72758,2682.7,2682.6,0.278]
[1739214505940,3.7275,2682.8,2682.6,0.278]
[1739214506841,3.72758,2682.7,2682.6,0.278]
[1739214507288,3.72731,2682.9,2682.6,0.278]
[1739214507458,3.72753,2682.8,2682.6,0.278]
[1739214508485,3.72758,2682.7,2682.6,0.278]
[1739214508639,4.49138,2682.7,2682.6,0.278]
[1739214509152,0.7638,2682.7,2682.6,0.278]
[1739214509479,3.72753,2682.8,2682.6,0.278]
[1739214511385,3.72758,2682.7,2682.6,0.2855]
[1739214512378,3.72753,2682.8,2682.6,0.2855]
[1739214512945,3.72758,2682.7,2682.6,0.278]
[1739214513656,3.72753,2682.8,2682.6,0.278]
[1739214513983,3.72758,2682.7,2682.6,0.278]
[1739214514181,3.72828,2682.3,2682.1,0.005]
[1739214514476,3.72828,2682.3,2682.1,0.282]
[1739214514692,3.72803,2682.4,2682.1,0.282]
[1739214515047,3.72825,2682.3,2682.1,0.282]
[1739214515254,3.72803,2682.4,2682.1,0.282]
[1739214516003,3.72825,2682.3,2682.1,0.282]
[1739214516288,3.72828,2682.2,2682.1,0.282]
[1739214516589,5.04208,2682.2,2682.1,0.005]
[1739214518485,5.78872616,2682.2,2682.1,0.005]
[1739214521365,11.13872616,2682.2,2682.1,0.005]
[1739214523887,11.13696058,2682.2,2682.1,0.005]
[1739214524419,3.72935,2681.5,2681.2,5.646]
[1739214524585,3.72948,2681.4,2681.2,5.646]
[1739214524911,3.72948,2681.4,2681.3,0.0075]
[1739214525119,3.72953,2681.3,2681.2,5.37]
[1739214525414,3.72953,2681.3,2681.2,5.3775]
[1739214526611,3.72948,2681.4,2681.1,4.009]
[1739214526612,4.49742,2681.7,2681.1,0.277]
[1739214526910,3.72962,2681.3,2681.0,1.0399]
[1739214527215,3.72968,2681.2,2681.0,1.0399]
[1739214527385,7.45926,2681.3,2681.0,1.0399]
[1739214527585,7.45923,2681.3,2681.0,1.0399]
[1739214527786,3.72961,2681.3,2681.0,1.0399]
[1739214528116,7.45923,2681.3,2681.0,1.0399]
[1739214528412,3.7297,2681.2,2681.0,0.277]
[1739214529412,3.72974,2681.2,2681.0,0.277]
[1739214529911,8.21768187,2681.3,2681.0,0.277]
[1739214530105,4.48803187,2681.3,2681.0,0.277]
[1739214530315,0.75846187,2681.3,2681.2,0.7629]
[1739214531712,4.48799187,2681.3,2681.2,0.7629]
[1739214532017,0.75846187,2681.3,2681.2,0.7629]
[1739214533511,3.72925,2681.5,2681.2,0.7779]
[1739214533707,3.72902,2681.7,2681.3,0.015]
[1739214534212,3.72913,2681.6,2681.3,0.015]
[1739214534417,0.55,2682.1,2681.9,3.72862]
[1739214534621,3.72812,2682.4,2681.9,3.72869]
[1739214534934,3.72773,2682.6,2682.1,0.7629]
[1739214535092,4.50531,2682.8,2682.2,0.276]
[1739214535430,0.74007994,2682.5,2682.3,0.015]
[1739214535595,7.45453,2683.0,2682.3,3.74311]
[1739214535794,3.72749,2682.8,2682.4,0.7629]
[1739214536002,3.72783,2682.6,2682.4,0.7629]
[1739214536243,3.72783,2682.6,2682.2,0.276]
[1739214537022,4.46320699,2682.6,2682.2,0.276]
[1739214537332,4.46320699,2682.6,2682.3,0.0075]
[1739214537333,0.73537699,2682.6,2682.3,0.0075]
[1739214537483,0.73537699,2682.6,2682.3,0.015]
[1739214538533,4.46314699,2682.6,2682.3,0.015]
[1739214539133,4.46314699,2682.6,2682.3,0.0075]
[1739214539134,3.72796,2682.5,2682.3,0.0075]
[1739214539336,4.46314699,2682.6,2682.2,0.276]
[1739214539688,3.72814,2682.3,2682.1,0.7629]
[1739214539916,3.72812,2682.4,2682.2,0.276]
[1739214540115,3.72812,2682.4,2682.1,0.7629]
[1739214540434,3.72812,2682.4,2682.2,0.276]
[1739214540587,5.24093699,2682.6,2682.2,0.276]
[1739214540787,3.72796,2682.5,2682.2,0.276]
[1739214542033,3.72805,2682.4,2682.2,0.276]
[1739214542331,3.72814,2682.3,2682.1,0.7629]
[1739214542537,3.72869,2681.9,2681.7,5.39]
[1739214542735,3.72867,2682.0,2681.5,3.24995837]
[1739214542917,3.72898,2681.7,2681.6,0.276]
[1739214543118,3.72933,2681.5,2681.3,0.7629]
[1739214543336,3.72912,2681.6,2681.4,0.276]
[1739214543540,3.72925,2681.5,2681.4,0.276]
[1739214543912,0.55,2681.9,2681.4,0.276]
[1739214544248,3.72923,2681.6,2681.4,0.276]
[1739214544395,3.72921,2681.6,2681.4,0.276]
[1739214544734,3.72925,2681.5,2681.4,0.276]
[1739214545619,3.72925,2681.5,2681.1,5.3815]
[1739214545833,3.72925,2681.5,2681.4,0.276]
[1739214546138,4.47663181,2681.5,2681.4,0.276]
[1739214547534,0.74738181,2681.5,2681.4,0.276]
[1739214548769,5.35,2682.1,2681.5,0.015]
[1739214548902,0.72895096,2682.1,2681.9,0.0075]
[1739214550197,3.72834,2682.2,2681.9,0.0075]
[1739214550399,3.72823,2682.3,2681.9,0.0075]
[1739214550625,3.72791,2682.5,2681.9,0.015]
[1739214550824,3.72791,2682.5,2682.1,0.0075]
[1739214551516,3.72791,2682.5,2682.1,0.7704]
[1739214551749,0.74760566,2682.4,2682.1,0.7704]
[1739214554042,3.72791,2682.5,2682.2,0.0075]
[1739214554217,3.72775,2682.6,2682.3,0.0075]
[1739214556948,4.45547588,2682.6,2682.3,0.0075]
[1739214557860,0.72772588,2682.6,2682.3,0.0075]
[1739214558220,3.72721,2683.0,2682.6,0.0075]
[1739214558434,3.72721,2683.0,2682.7,0.276]
[1739214558745,7.4545,2683.0,2682.7,0.276]
[1739214558945,0.75041135,2682.9,2682.7,0.276]
[1739214559359,3.72697,2683.2,2682.7,4.0035]
[1739214559817,3.72704,2683.1,2682.7,4.0035]
[1739214560618,3.72671,2683.4,2682.8,0.7779]
[1739214560940,0.74965024,2683.3,2682.9,0.0075]
[1739214561725,4.47647024,2683.3,2682.9,0.0075]
[1739214561956,3.72639,2683.6,2682.9,3.73468]
[1739214562156,3.72648,2683.5,2682.9,3.73468]
[1739214562358,0.55,2683.8,2683.2,0.7629]
[1739214562359,4.27613,2683.8,2683.2,0.7629]
[1739214562658,3.72627,2683.7,2683.3,0.015]
[1739214563552,0.74276037,2683.6,2683.3,0.015]
[1739214564163,0.74276037,2683.6,2683.3,3.74175]
[1739214564367,3.72613,2683.8,2683.3,3.74175]
[1739214564570,4.48571304,2684.0,2683.8,0.015]
[1739214564721,4.48571304,2684.0,2683.7,0.7629]
[1739214564722,0.75984304,2684.0,2683.9,0.291]
[1739214565073,4.48562304,2684.0,2683.9,0.276]
[1739214565378,3.72633,2683.6,2683.5,5.39]
[1739214565676,3.72633,2683.6,2683.5,5.666]
[1739214566674,3.72633,2683.6,2683.5,5.39]
[1739214566874,0.805,2683.4,2682.8,0.7629]
[1739214567061,3.72728,2683.0,2682.9,0.276]
[1739214567254,3.72728,2683.0,2682.9,0.0075]
[1739214567463,3.72728,2683.0,2682.9,0.2835]
[1739214567688,3.72728,2683.0,2682.9,0.276]
[1739214570244,3.72731,2682.9,2682.7,0.015]
[1739214570445,3.72731,2682.9,2682.8,0.2835]
[1739214571377,3.7277,2682.7,2682.4,0.7629]
[1739214571545,3.7277,2682.7,2682.5,0.276]
[1739214571728,3.72772,2682.6,2682.5,0.276]
[1739214571931,3.72772,2682.6,2682.5,0.2835]
[1739214573257,0.55,2683.3,2682.8,0.0075]
[1739214573474,4.46009834,2683.1,2682.8,0.0075]
[1739214574274,3.72731,2682.9,2682.8,0.0075]
[1739214574487,3.72731,2682.9,2682.5,35.276]
[1739214574647,4.46017834,2683.1,2682.6,0.015]
[1739214575044,3.72721,2683.0,2682.6,0.015]
[1739214575667,4.46007834,2683.1,2682.6,3.7427]
[1739214576065,0.73304834,2683.1,2682.6,0.015]
[1739214576286,0.55,2683.3,2682.8,0.7779]
[1739214576287,3.72676,2683.3,2682.8,0.7779]
[1739214576497,3.7267,2683.4,2682.8,0.7779]
[1739214576646,8.25778,2683.6,2683.0,0.015]
[1739214576993,3.72649,2683.5,2683.1,35.0]
[1739214577192,3.72636,2683.6,2683.2,0.7629]
[1739214577543,3.72636,2683.6,2683.3,0.0075]
[1739214577744,3.72661,2683.4,2683.3,0.0075]
[1739214577988,0.75154986,2683.5,2683.3,0.0075]
[1739214579797,7.4533,2683.4,2683.0,0.0075]
[1739214579953,0.75154986,2683.5,2683.1,3.73451]
[1739214580285,0.75154986,2683.5,2683.3,0.0075]
[1739214580844,3.72675,2683.3,2682.9,6.1529]
[1739214581070,3.72704,2683.1,2683.0,0.2845]
[1739214581273,3.72717,2683.0,2682.9,5.39]
[1739214581490,3.72717,2683.0,2682.9,5.667]
[1739214583056,4.47268441,2683.0,2682.9,5.667]
[1739214583796,3.72758,2682.7,2682.5,0.0075]
[1739214584104,3.72808,2682.4,2682.2,4.4929]
[1739214584312,3.72808,2682.4,2682.3,0.277]
[1739214584457,3.72808,2682.4,2682.3,0.292]
[1739214584806,3.72781,2682.6,2682.4,0.0075]
[1739214585094,3.72786,2682.5,2682.4,0.0075]
[1739214585871,3.728,2682.4,2682.0,3.0]
[1739214586057,3.72781,2682.6,2682.2,0.0075]
[1739214586258,7.45566,2682.6,2682.2,0.0075]
[1739214586658,0.76453454,2682.5,2682.2,0.0075]
[1739214586874,3.72761,2682.7,2682.4,0.0075]
[1739214587086,3.72761,2682.7,2682.5,0.0075]
[1739214587286,3.72731,2682.9,2682.5,0.0075]
[1739214587589,0.75625519,2682.7,2682.5,0.0075]
[1739214590421,3.72724,2683.0,2682.5,0.0075]
[1739214590711,3.72738,2682.9,2682.5,0.0075]
[1739214591504,3.72752,2682.8,2682.5,0.0075]
[1739214592286,3.72772,2682.6,2682.5,0.0075]
[1739214593196,3.7276,2682.7,2682.5,0.0075]
[1739214593709,4.46007356,2682.8,2682.5,0.0075]
[1739214593876,3.72759,2682.7,2682.5,0.0075]
[1739214594071,3.72759,2682.7,2682.6,0.2835]
[1739214599617,4.46007356,2682.8,2682.6,0.2835]
[1739214600202,0.73261356,2682.8,2682.7,0.0075]
[1739214600542,0.75048499,2683.3,2682.9,3.73467]
[1739214600743,3.72644,2683.6,2683.2,0.0075]
[1739214600924,0.8316,2683.7,2683.2,0.0075]
[1739214601104,3.72648,2683.5,2683.2,0.0075]
[1739214601440,3.72668,2683.4,2683.2,0.0075]
[1739214602143,3.72648,2683.5,2683.2,0.0075]
[1739214602516,4.462738,2683.6,2683.2,0.015]
[1739214603040,3.72648,2683.5,2683.2,0.015]
[1739214604143,3.72629,2683.7,2683.2,0.015]
[1739214604344,3.72629,2683.7,2683.4,0.0075]
[1739214604638,3.72647,2683.5,2683.4,0.0075]
[1739214604869,3.72647,2683.5,2683.3,0.015]
[1739214605420,4.46601032,2683.7,2683.3,0.015]
[1739214605743,4.46601032,2683.7,2683.3,0.0075]